[Event "Blixt-SM 2025"]
[Site "Norrköping, Sweden"]
[Date "2025.09.26"]
[Round "8.3"]
[White "Olsson, Linus"]
[Black "Johnson, Daniel"]
[Result "1-0"]
[TimeControl "3 min + 2 sec/move"]
[WhiteTitle "FM"]
[WhiteElo "2166"]
[BlackElo "2177"]

1. d4 {[%clk 00:03:03]} {[%emt 00:00:01]} Nf6 {[%clk 00:03:03]} {[%emt
00:00:02]} 2. c4 {[%clk 00:03:04]} e6 {[%clk 00:03:04]} {[%emt 00:00:01]} 3. g3
{[%clk 00:03:05]} {[%emt 00:00:02]} d5 {[%clk 00:03:05]} 4. Bg2 {[%clk
00:03:06]} Be7 {[%clk 00:03:06]} {[%emt 00:00:01]} 5. Nf3 {[%clk 00:03:06]}
{[%emt 00:00:02]} O-O {[%clk 00:03:06]} {[%emt 00:00:02]} 6. O-O {[%clk
00:03:06]} {[%emt 00:00:02]} dxc4 {[%clk 00:03:06]} {[%emt 00:00:02]} 7. Qc2
{[%clk 00:03:07]} {[%emt 00:00:01]} a6 {[%clk 00:03:05]} {[%emt 00:00:03]} 8.
a4 {[%clk 00:03:08]} Bd7 {[%clk 00:03:06]} 9. Qxc4 {[%clk 00:03:08]} {[%emt
00:00:02]} Bc6 {[%clk 00:03:06]} 10. Bg5 {[%clk 00:03:08]} {[%emt 00:00:02]} a5
{[%clk 00:03:07]} {[%emt 00:00:02]} 11. Nc3 {[%clk 00:03:06]} {[%emt 00:00:03]}
Ra6 {[%clk 00:03:08]} {[%emt 00:00:02]} 12. Rfe1 {[%clk 00:02:53]} {[%emt
00:00:15]} Rb6 {[%clk 00:03:09]} {[%emt 00:00:01]} 13. e4 {[%clk 00:02:44]}
{[%emt 00:00:11]} Rxb2 {[%clk 00:02:37]} {[%emt 00:00:33]} 14. Rad1 {[%clk
00:02:34]} {[%emt 00:00:12]} Rb4 {[%clk 00:02:21]} {[%emt 00:00:19]} 15. Qe2
{[%clk 00:02:26]} {[%emt 00:00:09]} h6 {[%clk 00:02:21]} {[%emt 00:00:03]} 16.
Bf4 {[%clk 00:02:14]} {[%emt 00:00:13]} Nbd7 {[%clk 00:02:05]} {[%emt
00:00:18]} 17. d5 {[%clk 00:02:14]} {[%emt 00:00:03]} exd5 {[%clk 00:02:05]}
{[%emt 00:00:02]} 18. exd5 {[%clk 00:02:15]} Bxa4 {[%clk 00:00:41]} {[%emt
00:01:26]} 19. Nxa4 {[%clk 00:02:15]} {[%emt 00:00:02]} Rxa4 {[%emt 00:00:10]}
20. Qxe7 {[%emt 00:00:02]} Qxe7 {[%clk 00:00:17]} {[%emt 00:00:18]} 21. Rxe7
{[%clk 00:02:15]} {[%emt 00:00:02]} Nb6 {[%clk 00:00:18]} 22. Ne5 {[%clk
00:01:48]} {[%emt 00:00:29]} Rc8 {[%clk 00:00:04]} {[%emt 00:00:16]} 23. Rxf7
{[%clk 00:01:24]} {[%emt 00:00:26]} Nc4 {[%clk 00:00:05]} {[%emt 00:00:01]} 24.
Re7 {[%clk 00:01:20]} {[%emt 00:00:06]} Nd6 {[%clk 00:00:03]} {[%emt 00:00:04]}
25. Bh3 {[%clk 00:01:18]} {[%emt 00:00:04]} Rb8 {[%clk 00:00:03]} {[%emt
00:00:03]} 26. Be6+ {[%clk 00:01:17]} {[%emt 00:00:02]} Kh7 {[%clk 00:00:04]}
{[%emt 00:00:02]} 27. Rxc7 {[%clk 00:01:17]} {[%emt 00:00:02]} Nde8 {[%clk
00:00:04]} {[%emt 00:00:01]} 28. Re7 {[%clk 00:01:12]} {[%emt 00:00:07]} b5
{[%clk 00:00:05]} 29. d6 {[%clk 00:01:04]} {[%emt 00:00:10]} b4 {[%clk
00:00:03]} {[%emt 00:00:04]} 30. d7 {[%clk 00:01:05]} {[%emt 00:00:01]} Nc7
{[%emt 00:00:04]} 31. Bf5+ {[%clk 00:01:02]} {[%emt 00:00:05]} Kg8 {[%clk
00:00:05]} {[%emt 00:00:02]} 32. d8=Q+ {[%clk 00:01:01]} {[%emt 00:00:03]} Rxd8
{[%clk 00:00:06]} {[%emt 00:00:02]} 33. Rxd8+ {[%clk 00:01:02]} Nce8 {[%clk
00:00:06]} {[%emt 00:00:02]} 34. Rexe8+ {[%clk 00:01:02]} {[%emt 00:00:02]}
Nxe8 {[%clk 00:00:06]} {[%emt 00:00:02]} 35. Rxe8# {[%emt 00:00:01]} 1-0

[Event "Blixt-SM 2025"]
[Site "Norrköping, Sweden"]
[Date "2025.09.26"]
[Round "9.9"]
[White "Sandberg, Lucas"]
[Black "Tornberg, Carlos"]
[Result "1-0"]
[TimeControl "3 min + 2 sec/move"]
[WhiteElo "2268"]
[BlackElo "2053"]

1. Nc3 {[%clk 00:03:02]} e5 {[%clk 00:03:02]} {[%emt 00:00:03]} 2. Nf3 {[%clk
00:03:01]} {[%emt 00:00:03]} Nc6 {[%clk 00:02:58]} {[%emt 00:00:06]} 3. e4
{[%clk 00:03:02]} {[%emt 00:00:01]} Nf6 {[%clk 00:02:59]} {[%emt 00:00:02]} 4.
h3 {[%clk 00:03:03]} Bb4 {[%clk 00:02:46]} {[%emt 00:00:16]} 5. a3 {[%clk
00:03:00]} {[%emt 00:00:05]} Bxc3 {[%clk 00:02:44]} {[%emt 00:00:04]} 6. dxc3
{[%clk 00:03:01]} Nxe4 {[%clk 00:02:36]} {[%emt 00:00:10]} 7. Nxe5 {[%clk
00:03:02]} {[%emt 00:00:01]} Nxe5 {[%clk 00:02:26]} {[%emt 00:00:13]} 8. Qd4
{[%clk 00:03:03]} O-O {[%clk 00:02:07]} {[%emt 00:00:20]} 9. Qxe4 {[%clk
00:03:03]} d5 {[%clk 00:02:04]} {[%emt 00:00:06]} 10. Qf4 {[%clk 00:02:50]}
{[%emt 00:00:15]} Ng6 {[%clk 00:01:47]} {[%emt 00:00:19]} 11. Qg3 {[%clk
00:02:50]} {[%emt 00:00:02]} d4 {[%clk 00:01:40]} {[%emt 00:00:09]} 12. cxd4
{[%clk 00:02:30]} {[%emt 00:00:22]} Qxd4 {[%clk 00:01:39]} {[%emt 00:00:03]} 13.
Qe3 {[%clk 00:02:16]} {[%emt 00:00:15]} Qa4 {[%clk 00:01:22]} {[%emt 00:00:20]}
14. Qb3 {[%clk 00:01:52]} {[%emt 00:00:27]} Qa5+ {[%clk 00:00:46]} {[%emt
00:00:38]} 15. Qb4 {[%clk 00:01:45]} {[%emt 00:00:08]} Qe5+ {[%clk 00:00:42]}
{[%emt 00:00:06]} 16. Be3 {[%clk 00:01:46]} a5 {[%clk 00:00:42]} {[%emt
00:00:02]} 17. Qd4 {[%clk 00:01:47]} {[%emt 00:00:01]} Qxd4 {[%clk 00:00:39]}
{[%emt 00:00:06]} 18. Bxd4 {[%clk 00:01:47]} Bf5 {[%clk 00:00:40]} 19. O-O-O
{[%clk 00:01:48]} {[%emt 00:00:01]} Rfe8 {[%clk 00:00:35]} {[%emt 00:00:08]} 20.
h4 {[%clk 00:01:36]} {[%emt 00:00:13]} Nf4 {[%clk 00:00:25]} {[%emt 00:00:12]}
21. Be3 {[%clk 00:01:35]} {[%emt 00:00:04]} Ne6 {[%clk 00:00:23]} {[%emt
00:00:04]} 22. h5 {[%clk 00:01:35]} {[%emt 00:00:02]} h6 {[%clk 00:00:23]}
{[%emt 00:00:03]} 23. Bc4 {[%clk 00:01:34]} {[%emt 00:00:02]} Rad8 {[%clk
00:00:20]} {[%emt 00:00:05]} 24. Rxd8 {[%clk 00:01:31]} {[%emt 00:00:05]} Rxd8
{[%clk 00:00:21]} 25. f3 {[%clk 00:01:32]} Nf8 {[%clk 00:00:12]} {[%emt
00:00:11]} 26. g4 {[%emt 00:00:02]} Be6 27. Bd3 {[%clk 00:01:32]} {[%emt
00:00:02]} b6 {[%clk 00:00:11]} {[%emt 00:00:05]} 28. Rg1 {[%clk 00:01:32]}
{[%emt 00:00:02]} Bd5 {[%clk 00:00:12]} {[%emt 00:00:01]} 29. f4 {[%clk
00:01:33]} Re8 {[%clk 00:00:12]} {[%emt 00:00:02]} 30. Bd2 {[%clk 00:01:28]}
{[%emt 00:00:07]} Be4 {[%clk 00:00:12]} {[%emt 00:00:02]} 31. Re1 {[%clk
00:01:29]} Bc6 {[%clk 00:00:10]} {[%emt 00:00:04]} 32. Rg1 {[%clk 00:01:23]}
{[%emt 00:00:08]} Be4 {[%clk 00:00:11]} {[%emt 00:00:01]} 33. Bb5 {[%clk
00:01:25]} c6 {[%clk 00:00:10]} {[%emt 00:00:02]} 34. Bc4 {[%clk 00:01:25]}
{[%emt 00:00:02]} b5 {[%clk 00:00:10]} {[%emt 00:00:03]} 35. Ba2 {[%clk
00:01:23]} {[%emt 00:00:04]} Bf3 {[%clk 00:00:06]} {[%emt 00:00:05]} 36. Bxa5
{[%clk 00:01:22]} {[%emt 00:00:03]} Re2 {[%clk 00:00:06]} {[%emt 00:00:03]} 37.
Bd2 {[%clk 00:01:10]} {[%emt 00:00:13]} Ne6 {[%clk 00:00:05]} {[%emt 00:00:04]}
38. Bb3 {[%clk 00:01:11]} Nd4 {[%clk 00:00:04]} {[%emt 00:00:03]} 39. Rg3
{[%clk 00:01:07]} {[%emt 00:00:06]} Re4 {[%clk 00:00:04]} {[%emt 00:00:01]} 40.
Kb1 {[%clk 00:00:58]} {[%emt 00:00:11]} Be2 {[%clk 00:00:04]} {[%emt 00:00:03]}
41. g5 {[%emt 00:00:04]} hxg5 {[%emt 00:00:03]} 42. Rxg5 {[%clk 00:00:51]}
{[%emt 00:00:02]} Nxb3 {[%clk 00:00:04]} {[%emt 00:00:02]} 43. cxb3 {[%clk
00:00:52]} Bd3+ {[%clk 00:00:05]} 44. Kc1 {[%clk 00:00:50]} {[%emt 00:00:04]}
Re2 {[%clk 00:00:04]} {[%emt 00:00:03]} 45. Bc3 {[%clk 00:00:49]} {[%emt
00:00:02]} g6 {[%clk 00:00:04]} {[%emt 00:00:03]} 46. hxg6 {[%clk 00:00:50]}
fxg6 {[%clk 00:00:05]} 47. Rc5 {[%clk 00:00:49]} {[%emt 00:00:03]} Be4 {[%clk
00:00:05]} {[%emt 00:00:02]} 48. a4 {[%clk 00:00:48]} {[%emt 00:00:03]} bxa4
{[%clk 00:00:05]} {[%emt 00:00:02]} 49. bxa4 {[%clk 00:00:49]} Rf2 {[%clk
00:00:06]} {[%emt 00:00:01]} 50. Be5 {[%clk 00:00:49]} {[%emt 00:00:02]} Rf1+
{[%clk 00:00:05]} {[%emt 00:00:03]} 51. Kd2 {[%clk 00:00:51]} Rf2+ {[%clk
00:00:06]} 52. Ke3 {[%clk 00:00:52]} 1-0

[Event "Blixt-SM 2025"]
[Site "Norrköping, Sweden"]
[Date "2025.09.26"]
[Round "11.5"]
[White "Rogoz, Vladyslav"]
[Black "Religa, Marek"]
[Result "1-0"]
[TimeControl "3 min + 2 sec/move"]
[WhiteElo "2108"]
[BlackElo "2207"]

1. d4 {[%clk 00:03:03]} {[%emt 00:04:42]} g6 {[%clk 00:03:04]} 2. c4 {[%clk
00:03:05]} Bg7 {[%clk 00:03:05]} {[%emt 00:00:01]} 3. Nc3 {[%clk 00:03:06]} Nf6
{[%clk 00:03:02]} {[%emt 00:00:05]} 4. e4 {[%clk 00:03:07]} {[%emt 00:00:01]}
d6 {[%clk 00:03:04]} 5. f4 {[%clk 00:03:08]} O-O {[%clk 00:02:56]} {[%emt
00:00:11]} 6. Nf3 {[%clk 00:03:09]} c5 {[%clk 00:02:55]} {[%emt 00:00:04]} 7.
d5 {[%clk 00:03:10]} Na6 {[%clk 00:02:55]} {[%emt 00:00:02]} 8. Be2 {[%clk
00:03:10]} {[%emt 00:00:02]} Nc7 {[%clk 00:02:57]} {[%emt 00:00:01]} 9. O-O
{[%clk 00:03:10]} {[%emt 00:00:01]} Rb8 {[%clk 00:02:58]} 10. a4 {[%clk
00:02:59]} {[%emt 00:00:14]} a6 11. a5 {[%clk 00:02:58]} {[%emt 00:00:02]} b5
{[%clk 00:02:56]} {[%emt 00:00:06]} 12. axb6 Rxb6 {[%clk 00:02:57]} 13. e5
{[%clk 00:02:49]} {[%emt 00:00:11]} dxe5 {[%clk 00:02:48]} {[%emt 00:00:11]} 14.
Na4 {[%clk 00:02:47]} {[%emt 00:00:04]} Rb8 {[%clk 00:02:41]} {[%emt 00:00:09]}
15. fxe5 {[%clk 00:02:46]} {[%emt 00:00:03]} Ng4 {[%clk 00:02:42]} {[%emt
00:00:01]} 16. d6 {[%clk 00:02:37]} {[%emt 00:00:11]} exd6 {[%clk 00:02:34]}
{[%emt 00:00:10]} 17. exd6 {[%clk 00:02:38]} {[%emt 00:00:02]} Ne6 {[%clk
00:02:33]} {[%emt 00:00:04]} 18. h3 {[%clk 00:02:22]} {[%emt 00:00:17]} Ne5
{[%clk 00:02:33]} {[%emt 00:00:01]} 19. Be3 {[%clk 00:02:10]} {[%emt 00:00:15]}
Bd7 {[%clk 00:01:54]} {[%emt 00:00:41]} 20. Nxc5 {[%clk 00:02:10]} {[%emt
00:00:01]} Nxc5 {[%clk 00:01:52]} {[%emt 00:00:05]} 21. Bxc5 {[%clk 00:02:11]}
Rxb2 {[%clk 00:01:52]} {[%emt 00:00:02]} 22. Rxa6 {[%clk 00:02:10]} {[%emt
00:00:03]} Qc8 {[%clk 00:01:47]} {[%emt 00:00:06]} 23. Ra5 {[%clk 00:02:07]}
{[%emt 00:00:05]} Be6 {[%clk 00:00:59]} {[%emt 00:00:50]} 24. Nxe5 {[%clk
00:02:00]} {[%emt 00:00:09]} Bxe5 {[%clk 00:01:00]} {[%emt 00:00:02]} 25. Bd4
{[%clk 00:02:01]} {[%emt 00:00:01]} Bxd4+ {[%clk 00:00:57]} {[%emt 00:00:05]}
26. Qxd4 {[%clk 00:02:01]} {[%emt 00:00:02]} Rxe2 {[%clk 00:00:55]} {[%emt
00:00:04]} 27. c5 {[%clk 00:02:01]} Bxh3 {[%clk 00:00:31]} {[%emt 00:00:26]} 28.
Rf2 {[%clk 00:02:02]} {[%emt 00:00:01]} Re1+ {[%clk 00:00:26]} {[%emt
00:00:07]} 29. Kh2 {[%clk 00:02:03]} {[%emt 00:00:01]} Bd7 {[%clk 00:00:21]}
{[%emt 00:00:07]} 30. Ra7 {[%clk 00:02:02]} {[%emt 00:00:03]} Qd8 {[%clk
00:00:14]} {[%emt 00:00:09]} 31. Rf4 {[%clk 00:01:43]} {[%emt 00:00:21]} Bc6
{[%clk 00:00:09]} {[%emt 00:00:07]} 32. Rc7 {[%clk 00:01:41]} {[%emt 00:00:04]}
Ba8 {[%clk 00:00:06]} {[%emt 00:00:05]} 33. c6 {[%clk 00:01:37]} {[%emt
00:00:05]} Qg5 {[%clk 00:00:07]} {[%emt 00:00:01]} 34. d7 {[%clk 00:01:28]}
{[%emt 00:00:12]} Rd1 {[%clk 00:00:09]} 35. Qf6 {[%clk 00:01:22]} {[%emt
00:00:07]} Qh5+ {[%clk 00:00:04]} {[%emt 00:00:06]} 36. Rh4 {[%clk 00:01:21]}
{[%emt 00:00:03]} Qe2 {[%clk 00:00:04]} {[%emt 00:00:02]} 37. Rc8 {[%clk
00:01:17]} {[%emt 00:00:06]} Qd2 {[%clk 00:00:03]} {[%emt 00:00:04]} 38. Rxf8+
{[%clk 00:01:11]} Kxf8 {[%clk 00:00:05]} 39. Rxh7 {[%clk 00:01:06]} {[%emt
00:00:06]} Qd6+ {[%clk 00:00:04]} {[%emt 00:00:03]} 40. Qxd6+ {[%clk 00:01:07]}
{[%emt 00:00:01]} Rxd6 {[%clk 00:00:05]} {[%emt 00:00:01]} 41. c7 {[%clk
00:01:02]} {[%emt 00:00:07]} 1-0

[Event "Blixt-SM 2025"]
[Site "Norrköping, Sweden"]
[Date "2025.09.26"]
[Round "1.10"]
[White "Nygren, Kim"]
[Black "Dolata, Henryk"]
[Result "1-0"]
[TimeControl "3 min + 2 sec/move"]
[WhiteTitle "CM"]
[WhiteElo "2173"]
[BlackElo "1943"]

1. d4 {[%clk 00:03:01]} {[%emt 00:00:03]} d5 {[%clk 00:03:03]} {[%emt
00:00:01]} 2. c4 {[%clk 00:03:01]} {[%emt 00:00:02]} e5 {[%clk 00:03:04]} 3.
Nc3 {[%clk 00:02:57]} {[%emt 00:00:07]} dxc4 {[%clk 00:03:05]} {[%emt
00:00:02]} 4. d5 {[%clk 00:02:57]} {[%emt 00:00:02]} c6 {[%clk 00:02:55]}
{[%emt 00:00:12]} 5. e4 {[%clk 00:02:57]} cxd5 {[%clk 00:02:53]} {[%emt
00:00:04]} 6. exd5 {[%clk 00:02:58]} Nf6 {[%clk 00:02:42]} {[%emt 00:00:13]} 7.
Bxc4 {[%clk 00:02:58]} {[%emt 00:00:03]} Be7 {[%clk 00:02:29]} {[%emt
00:00:15]} 8. Bb5+ {[%clk 00:02:50]} {[%emt 00:00:09]} Bd7 {[%clk 00:02:19]}
{[%emt 00:00:12]} 9. d6 {[%clk 00:02:05]} {[%emt 00:00:47]} Bxb5 {[%clk
00:01:35]} {[%emt 00:00:46]} 10. Nxb5 {[%clk 00:02:06]} {[%emt 00:00:01]} Qa5+
{[%clk 00:01:37]} 11. Nc3 {[%clk 00:02:06]} {[%emt 00:00:01]} Bd8 {[%clk
00:01:30]} {[%emt 00:00:09]} 12. Nf3 {[%clk 00:01:58]} {[%emt 00:00:11]} O-O
{[%clk 00:01:29]} {[%emt 00:00:04]} 13. O-O {[%clk 00:01:55]} {[%emt 00:00:04]}
Nc6 {[%clk 00:01:20]} {[%emt 00:00:11]} 14. Re1 {[%clk 00:01:36]} {[%emt
00:00:20]} Bb6 {[%clk 00:00:55]} {[%emt 00:00:28]} 15. Bg5 {[%clk 00:01:22]}
{[%emt 00:00:16]} Ng4 {[%clk 00:00:43]} {[%emt 00:00:14]} 16. Bh4 {[%clk
00:01:16]} {[%emt 00:00:09]} f6 {[%clk 00:00:38]} {[%emt 00:00:06]} 17. a3
{[%clk 00:01:07]} {[%emt 00:00:12]} Bd8 {[%clk 00:00:33]} {[%emt 00:00:07]} 18.
b4 {[%clk 00:01:05]} {[%emt 00:00:04]} Qb6 {[%clk 00:00:33]} {[%emt 00:00:02]}
19. Qd5+ {[%clk 00:00:57]} {[%emt 00:00:09]} Kh8 {[%clk 00:00:35]} 20. Na4
{[%clk 00:00:55]} {[%emt 00:00:05]} Qa6 {[%clk 00:00:26]} {[%emt 00:00:11]} 21.
Nc5 {[%clk 00:00:51]} {[%emt 00:00:06]} Qb6 {[%clk 00:00:25]} {[%emt 00:00:03]}
22. Nd7 {[%clk 00:00:49]} {[%emt 00:00:04]} 1-0

[Event "Blixt-SM 2025"]
[Site "Norrköping, Sweden"]
[Date "2025.09.26"]
[Round "3.6"]
[White "Iwraeus, Lowe"]
[Black "Berovski, Krum"]
[Result "0-1"]
[TimeControl "3 min + 2 sec/move"]
[WhiteElo "2060"]
[BlackElo "2344"]

1. d4 {[%clk 00:03:02]} {[%emt 00:00:02]} Nf6 {[%clk 00:03:02]} {[%emt
00:00:02]} 2. Nf3 {[%clk 00:03:04]} e6 {[%clk 00:03:03]} {[%emt 00:00:02]} 3.
g3 {[%clk 00:03:05]} {[%emt 00:00:01]} d5 {[%clk 00:03:04]} 4. Bg2 {[%clk
00:03:06]} {[%emt 00:00:01]} c5 {[%clk 00:03:05]} 5. O-O {[%clk 00:03:05]}
{[%emt 00:00:03]} Nc6 {[%clk 00:03:06]} 6. b3 {[%clk 00:03:05]} {[%emt
00:00:03]} cxd4 {[%clk 00:02:50]} {[%emt 00:00:17]} 7. Nxd4 {[%clk 00:03:05]}
{[%emt 00:00:02]} e5 {[%clk 00:02:49]} {[%emt 00:00:03]} 8. Nxc6 bxc6 {[%clk
00:02:50]} 9. Bb2 {[%clk 00:03:01]} {[%emt 00:00:01]} e4 {[%clk 00:02:41]}
{[%emt 00:00:10]} 10. e3 {[%clk 00:02:43]} {[%emt 00:00:20]} Be7 {[%clk
00:02:38]} {[%emt 00:00:05]} 11. Nd2 {[%clk 00:02:42]} {[%emt 00:00:03]} O-O
{[%clk 00:02:33]} {[%emt 00:00:07]} 12. c4 {[%clk 00:02:42]} {[%emt 00:00:01]}
Be6 {[%clk 00:02:30]} {[%emt 00:00:05]} 13. Qc2 {[%clk 00:02:43]} {[%emt
00:00:03]} Qd7 {[%clk 00:02:20]} {[%emt 00:00:12]} 14. Rfd1 {[%clk 00:02:40]}
{[%emt 00:00:04]} Qb7 {[%clk 00:02:08]} {[%emt 00:00:14]} 15. Rac1 {[%clk
00:02:37]} {[%emt 00:00:05]} Rac8 {[%clk 00:01:56]} {[%emt 00:00:13]} 16. h3
{[%clk 00:02:32]} {[%emt 00:00:08]} a5 {[%clk 00:01:53]} {[%emt 00:00:05]} 17.
Bf1 {[%clk 00:02:21]} {[%emt 00:00:12]} h5 {[%clk 00:01:43]} {[%emt 00:00:12]}
18. Nb1 {[%clk 00:01:38]} {[%emt 00:00:45]} Qd7 {[%clk 00:01:21]} {[%emt
00:00:25]} 19. h4 {[%clk 00:01:36]} {[%emt 00:00:04]} Ng4 {[%clk 00:01:08]}
{[%emt 00:00:14]} 20. cxd5 {[%clk 00:01:33]} {[%emt 00:00:06]} cxd5 {[%clk
00:01:09]} 21. Qd2 {[%clk 00:01:32]} {[%emt 00:00:03]} a4 {[%clk 00:00:48]}
{[%emt 00:00:23]} 22. Rxc8 {[%clk 00:01:30]} {[%emt 00:00:04]} Rxc8 {[%clk
00:00:49]} 23. Rc1 {[%clk 00:01:31]} Rxc1 {[%clk 00:00:47]} {[%emt 00:00:05]}
24. Qxc1 {[%clk 00:01:32]} {[%emt 00:00:01]} axb3 {[%clk 00:00:47]} 25. axb3
{[%clk 00:01:34]} {[%emt 00:00:01]} Qd6 {[%clk 00:00:32]} {[%emt 00:00:17]} 26.
Bd4 {[%clk 00:01:17]} {[%emt 00:00:18]} Bxh4 {[%clk 00:00:31]} {[%emt
00:00:04]} 27. Qe1 {[%clk 00:00:53]} {[%emt 00:00:26]} Bf6 {[%clk 00:00:24]}
{[%emt 00:00:09]} 28. Bxf6 {[%clk 00:00:51]} {[%emt 00:00:04]} Nxf6 {[%clk
00:00:25]} {[%emt 00:00:01]} 29. Be2 {[%clk 00:00:36]} {[%emt 00:00:18]} Bg4
{[%clk 00:00:21]} {[%emt 00:00:05]} 30. Bf1 {[%clk 00:00:23]} {[%emt 00:00:15]}
d4 {[%clk 00:00:20]} {[%emt 00:00:04]} 31. exd4 {[%clk 00:00:20]} {[%emt
00:00:04]} Qxd4 {[%clk 00:00:20]} {[%emt 00:00:01]} 32. Qe3 {[%clk 00:00:19]}
{[%emt 00:00:03]} Qb2 {[%clk 00:00:09]} {[%emt 00:00:13]} 33. Nd2 {[%clk
00:00:19]} {[%emt 00:00:02]} Nd5 {[%clk 00:00:10]} {[%emt 00:00:02]} 34. Qg5
{[%clk 00:00:09]} {[%emt 00:00:11]} e3 {[%clk 00:00:10]} {[%emt 00:00:02]} 35.
Qxd5 {[%clk 00:00:03]} {[%emt 00:00:08]} exd2 {[%clk 00:00:11]} 0-1

[Event "Blixt-SM 2025"]
[Site "Norrköping, Sweden"]
[Date "2025.09.26"]
[Round "5.2"]
[White "Olsson, Linus"]
[Black "Berovski, Krum"]
[Result "1-0"]
[TimeControl "3 min + 2 sec/move"]
[WhiteTitle "FM"]
[WhiteElo "2166"]
[BlackElo "2344"]

1. d4 {[%clk 00:03:03]} {[%emt 00:00:01]} Nf6 {[%clk 00:03:03]} {[%emt
00:00:01]} 2. c4 {[%clk 00:03:04]} {[%emt 00:00:01]} e6 {[%clk 00:03:04]} 3. g3
{[%clk 00:03:05]} Bb4+ {[%clk 00:03:03]} {[%emt 00:00:03]} 4. Nd2 {[%clk
00:03:05]} {[%emt 00:00:01]} d5 {[%clk 00:03:03]} {[%emt 00:00:03]} 5. Bg2
{[%clk 00:03:06]} {[%emt 00:00:01]} c6 {[%clk 00:03:00]} {[%emt 00:00:05]} 6.
Qc2 {[%clk 00:03:06]} {[%emt 00:00:02]} O-O {[%clk 00:02:48]} {[%emt 00:00:14]}
7. Ngf3 {[%clk 00:03:06]} {[%emt 00:00:02]} Nbd7 {[%clk 00:02:49]} {[%emt
00:00:02]} 8. O-O {[%clk 00:03:06]} {[%emt 00:00:02]} b6 {[%clk 00:02:44]}
{[%emt 00:00:07]} 9. b3 {[%clk 00:03:05]} {[%emt 00:00:03]} Bb7 {[%clk
00:02:40]} {[%emt 00:00:06]} 10. Bb2 {[%clk 00:03:05]} {[%emt 00:00:02]} Rc8
{[%clk 00:02:34]} {[%emt 00:00:08]} 11. e4 {[%clk 00:03:05]} {[%emt 00:00:02]}
Be7 {[%clk 00:02:18]} {[%emt 00:00:18]} 12. Rad1 {[%clk 00:02:54]} {[%emt
00:00:13]} Qc7 {[%clk 00:02:14]} {[%emt 00:00:06]} 13. Rfe1 {[%clk 00:02:48]}
{[%emt 00:00:08]} Rfd8 {[%clk 00:02:01]} {[%emt 00:00:15]} 14. h4 {[%clk
00:02:11]} {[%emt 00:00:38]} h6 {[%clk 00:02:01]} {[%emt 00:00:02]} 15. e5
{[%emt 00:00:12]} Nh7 {[%clk 00:01:47]} {[%emt 00:00:15]} 16. Qd3 {[%clk
00:01:45]} {[%emt 00:00:21]} c5 {[%clk 00:01:40]} {[%emt 00:00:09]} 17. Qe3
{[%clk 00:01:41]} {[%emt 00:00:06]} cxd4 {[%clk 00:01:31]} {[%emt 00:00:10]} 18.
Bxd4 {[%clk 00:01:41]} {[%emt 00:00:03]} Nc5 {[%clk 00:01:13]} {[%emt
00:00:19]} 19. Bb2 {[%clk 00:01:32]} {[%emt 00:00:11]} dxc4 {[%clk 00:01:03]}
{[%emt 00:00:12]} 20. Nxc4 {[%clk 00:01:32]} Rxd1 {[%clk 00:01:04]} {[%emt
00:00:01]} 21. Rxd1 {[%clk 00:01:33]} {[%emt 00:00:01]} Rd8 {[%clk 00:01:05]}
{[%emt 00:00:02]} 22. Rd2 {[%clk 00:01:11]} {[%emt 00:00:24]} Nf8 {[%clk
00:00:44]} {[%emt 00:00:23]} 23. Nd6 {[%clk 00:01:02]} {[%emt 00:00:10]} Bxd6
{[%clk 00:00:21]} {[%emt 00:00:25]} 24. exd6 {[%clk 00:01:03]} {[%emt
00:00:01]} Qc6 {[%clk 00:00:23]} 25. Ne1 {[%clk 00:00:41]} {[%emt 00:00:25]}
Qd7 {[%clk 00:00:23]} {[%emt 00:00:02]} 26. b4 {[%clk 00:00:34]} {[%emt
00:00:10]} Bxg2 {[%clk 00:00:20]} {[%emt 00:00:04]} 27. Nxg2 {[%clk 00:00:32]}
{[%emt 00:00:03]} Nb7 {[%clk 00:00:18]} {[%emt 00:00:05]} 28. Nf4 {[%clk
00:00:15]} {[%emt 00:00:19]} f6 {[%clk 00:00:05]} {[%emt 00:00:15]} 29. Nh5
{[%clk 00:00:14]} {[%emt 00:00:03]} Qf7 {[%clk 00:00:07]} 30. Qf3 {[%clk
00:00:13]} {[%emt 00:00:03]} Rxd6 {[%clk 00:00:07]} {[%emt 00:00:02]} 31. Rc2
{[%clk 00:00:10]} {[%emt 00:00:04]} e5 {[%clk 00:00:04]} {[%emt 00:00:05]} 32.
Rc8 {[%clk 00:00:10]} {[%emt 00:00:02]} Rd8 {[%clk 00:00:05]} 33. Rc2 {[%clk
00:00:09]} {[%emt 00:00:02]} Nd6 {[%clk 00:00:06]} {[%emt 00:00:01]} 34. Qg4
{[%clk 00:00:05]} {[%emt 00:00:06]} f5 {[%clk 00:00:05]} {[%emt 00:00:04]} 35.
Qe2 {[%clk 00:00:07]} Ng6 {[%clk 00:00:05]} {[%emt 00:00:02]} 36. Bxe5 {[%clk
00:00:06]} {[%emt 00:00:03]} Re8 {[%clk 00:00:06]} 37. f4 {[%clk 00:00:07]}
Nxe5 {[%clk 00:00:07]} {[%emt 00:00:01]} 38. fxe5 {[%clk 00:00:08]} Ne4 {[%clk
00:00:08]} 39. Nf4 {[%clk 00:00:07]} {[%emt 00:00:02]} Rxe5 {[%clk 00:00:10]}
40. Qd3 {[%clk 00:00:07]} {[%emt 00:00:02]} Re8 {[%clk 00:00:11]} 41. a4 {[%clk
00:00:07]} {[%emt 00:00:02]} Kh7 {[%clk 00:00:11]} {[%emt 00:00:02]} 42. h5
{[%clk 00:00:08]} Qe7 {[%clk 00:00:11]} {[%emt 00:00:03]} 43. Re2 {[%clk
00:00:09]} Qxb4 {[%clk 00:00:12]} 44. Kg2 {[%clk 00:00:08]} {[%emt 00:00:02]}
Qc5 {[%clk 00:00:13]} {[%emt 00:00:02]} 45. Qd7 {[%clk 00:00:08]} {[%emt
00:00:02]} Re7 {[%clk 00:00:13]} {[%emt 00:00:02]} 46. Qd8 {[%clk 00:00:07]}
{[%emt 00:00:02]} Qe5 {[%clk 00:00:11]} {[%emt 00:00:05]} 47. Re3 {[%clk
00:00:06]} {[%emt 00:00:03]} Re8 {[%clk 00:00:12]} 48. Qd7 {[%clk 00:00:06]}
{[%emt 00:00:02]} Qb2+ {[%clk 00:00:13]} 49. Re2 {[%clk 00:00:07]} {[%emt
00:00:02]} Qe5 {[%clk 00:00:14]} {[%emt 00:00:01]} 50. Qxa7 {[%clk 00:00:06]}
{[%emt 00:00:04]} Qd6 {[%clk 00:00:12]} {[%emt 00:00:03]} 51. Qb7 {[%clk
00:00:07]} Re7 {[%clk 00:00:14]} 52. Qc8 {[%clk 00:00:08]} Qc5 {[%clk
00:00:12]} {[%emt 00:00:03]} 53. Qd8 {[%clk 00:00:06]} {[%emt 00:00:03]} Rf7
{[%clk 00:00:11]} {[%emt 00:00:04]} 54. Ng6 {[%clk 00:00:07]} Rf8 {[%clk
00:00:08]} {[%emt 00:00:05]} 55. Nxf8+ {[%clk 00:00:07]} 1-0